[Event "Titled Tuesday Blitz August 17 2021"]
[White "Majer, Damir"]
[Black "Atabayev, Maksat"]
[WhiteFideId "4615689"]
[BlackFideId "14001101"]
[WhiteElo "2401"]
[BlackElo "2457"]
[Result "1-0"]
[Round "02"]
[TimeControl "180+1"]
[Date "2021.08.17"]
[WhiteClock "0:00:09"]
[BlackClock "0:00:26"]

1. d4 {[%clk 0:03:00]}  c5 {[%clk 0:02:59]} 2. e3 {[%clk 0:02:56]}  Nf6 {[%clk 0:02:58]} 3. Nf3 {[%clk 0:02:57]}  g6 {[%clk 0:02:57]} 4. c4 {[%clk 0:02:55]}  Bg7 {[%clk 0:02:57]} 5. Nc3 {[%clk 0:02:55]}  O-O {[%clk 0:02:57]} 6. d5 {[%clk 0:02:54]}  d6 {[%clk 0:02:56]} 7. Be2 {[%clk 0:02:52]}  a6 {[%clk 0:02:54]} 8. a4 {[%clk 0:02:49]}  e6 {[%clk 0:02:53]} 9. O-O {[%clk 0:02:47]}  exd5 {[%clk 0:02:53]} 10. cxd5 {[%clk 0:02:47]}  Re8 {[%clk 0:02:54]} 11. h3 {[%clk 0:02:46]}  Nbd7 {[%clk 0:02:47]} 12. Qc2 {[%clk 0:02:38]}  Qc7 {[%clk 0:02:41]} 13. Nd2 {[%clk 0:02:37]}  Rb8 {[%clk 0:02:40]} 14. Rd1 {[%clk 0:02:31]}  b6 {[%clk 0:02:22]} 15. Bf1 {[%clk 0:02:26]}  Bb7 {[%clk 0:02:22]} 16. Nc4 {[%clk 0:02:22]}  Ne5 {[%clk 0:02:21]} 17. Na3 {[%clk 0:02:18]}  Nh5 {[%clk 0:02:14]} 18. f4 {[%clk 0:02:16]}  Nd7 {[%clk 0:02:13]} 19. Ne4 {[%clk 0:02:04]}  Ndf6 {[%clk 0:02:08]} 20. Nxf6+ {[%clk 0:01:48]}  Nxf6 {[%clk 0:02:06]} 21. Bc4 {[%clk 0:01:42]}  Rbd8 {[%clk 0:02:00]} 22. Qd3 {[%clk 0:01:37]}  Qc8 {[%clk 0:02:00]} 23. Nb1 {[%clk 0:01:32]}  Ne4 {[%clk 0:01:57]} 24. Nc3 {[%clk 0:01:27]}  f5 {[%clk 0:01:51]} 25. Nxe4 {[%clk 0:01:06]}  Rxe4 {[%clk 0:01:50]} 26. Ra2 {[%clk 0:01:03]}  Rde8 {[%clk 0:01:49]} 27. b3 {[%clk 0:01:01]}  h5 {[%clk 0:01:42]} 28. Kh1 {[%clk 0:00:57]}  Kh7 {[%clk 0:01:37]} 29. Rf2 {[%clk 0:00:52]}  Bf6 {[%clk 0:01:25]} 30. Rf3 {[%clk 0:00:42]}  R8e7 {[%clk 0:01:21]} 31. Rdf1 {[%clk 0:00:40]}  a5 {[%clk 0:01:20]} 32. Rd1 {[%clk 0:00:37]}  Qe8 {[%clk 0:01:19]} 33. Qd2 {[%clk 0:00:34]}  Qh8 {[%clk 0:01:13]} 34. Qd3 {[%clk 0:00:33]}  Qg7 {[%clk 0:01:12]} 35. Rff1 {[%clk 0:00:32]}  Qf7 {[%clk 0:01:11]} 36. Rf2 {[%clk 0:00:31]}  Qe8 {[%clk 0:01:09]} 37. Rf3 {[%clk 0:00:30]}  Bc8 {[%clk 0:01:07]} 38. Qd2 {[%clk 0:00:27]}  h4 {[%clk 0:01:02]} 39. Bd3 {[%clk 0:00:23]}  Rb4 {[%clk 0:01:01]} 40. Bc4 {[%clk 0:00:21]}  Re4 {[%clk 0:01:00]} 41. Qc2 {[%clk 0:00:18]}  Rbxc4 {[%clk 0:00:57]} 42. bxc4 {[%clk 0:00:17]}  Ba6 {[%clk 0:00:57]} 43. Qb3 {[%clk 0:00:17]}  Qd8 {[%clk 0:00:54]} 44. Bb2 {[%clk 0:00:16]}  Bxc4 {[%clk 0:00:50]} 45. Qc2 {[%clk 0:00:17]}  Ba6 {[%clk 0:00:45]} 46. Bxf6 {[%clk 0:00:16]}  Qxf6 {[%clk 0:00:44]} 47. Rb1 {[%clk 0:00:16]}  Rc4 {[%clk 0:00:42]} 48. Qf2 {[%clk 0:00:15]}  Qd8 {[%clk 0:00:40]} 49. Qe1 {[%clk 0:00:15]}  Rxa4 {[%clk 0:00:39]} 50. Rf2 {[%clk 0:00:14]}  Bd3 {[%clk 0:00:38]} 51. Rc1 {[%clk 0:00:13]}  Be4 {[%clk 0:00:38]} 52. Rb2 {[%clk 0:00:13]}  Rb4 {[%clk 0:00:36]} 53. Rxb4 {[%clk 0:00:12]}  axb4 {[%clk 0:00:37]} 54. Ra1 {[%clk 0:00:12]}  Qc7 {[%clk 0:00:35]} 55. Qxh4+ {[%clk 0:00:11]}  Kg7 {[%clk 0:00:35]} 56. Ra8 {[%clk 0:00:10]}  Bxd5 {[%clk 0:00:29]} 57. Qh8+ {[%clk 0:00:09]}  Kf7 {[%clk 0:00:29]} 58. Qf8+ {[%clk 0:00:09]}  Ke6 {[%clk 0:00:26]} 59. Re8+ {[%clk 0:00:09]}  Qe7 {[%clk 0:00:26]} 60. Qxe7# {[%clk 0:00:09]} 1-0


[Site "https://www.chess.com"]

[Event "Titled Tuesday Blitz August 17 2021"]
[White "Maksimovic, Bojan"]
[Black "Klimciauskas, Domantas"]
[WhiteFideId "14408120"]
[BlackFideId "12802999"]
[WhiteElo "2439"]
[BlackElo "2253"]
[Result "1-0"]
[Round "02"]
[TimeControl "180+1"]
[Date "2021.08.18"]
[WhiteClock "0:00:10"]
[BlackClock "0:00:01"]

1. g3 {[%clk 0:03:00]}  g6 {[%clk 0:02:58]} 2. h4 {[%clk 0:03:00]}  h5 {[%clk 0:02:56]} 3. c4 {[%clk 0:02:58]}  Bg7 {[%clk 0:02:56]} 4. Nc3 {[%clk 0:02:57]}  c5 {[%clk 0:02:51]} 5. d3 {[%clk 0:02:56]}  Nc6 {[%clk 0:02:51]} 6. Bd2 {[%clk 0:02:53]}  e5 {[%clk 0:02:46]} 7. Bg2 {[%clk 0:02:52]}  Nf6 {[%clk 0:02:37]} 8. Bg5 {[%clk 0:02:47]}  d6 {[%clk 0:02:30]} 9. Nf3 {[%clk 0:02:46]}  Qc7 {[%clk 0:02:01]} 10. Bxf6 {[%clk 0:02:46]}  Bxf6 {[%clk 0:02:00]} 11. Nd5 {[%clk 0:02:45]}  Qd8 {[%clk 0:02:01]} 12. Nd2 {[%clk 0:02:45]}  Bg7 {[%clk 0:01:59]} 13. Ne4 {[%clk 0:02:44]}  O-O {[%clk 0:01:56]} 14. O-O {[%clk 0:02:41]}  Bf5 {[%clk 0:01:41]} 15. a3 {[%clk 0:02:39]}  a5 {[%clk 0:01:40]} 16. Qa4 {[%clk 0:02:30]}  Rb8 {[%clk 0:01:22]} 17. e3 {[%clk 0:02:25]}  Kh8 {[%clk 0:01:02]} 18. b4 {[%clk 0:02:16]}  axb4 {[%clk 0:00:54]} 19. axb4 {[%clk 0:02:16]}  cxb4 {[%clk 0:00:52]} 20. Nxb4 {[%clk 0:02:16]}  Nxb4 {[%clk 0:00:50]} 21. Qxb4 {[%clk 0:02:16]}  d5 {[%clk 0:00:48]} 22. cxd5 {[%clk 0:02:05]}  Qxd5 {[%clk 0:00:48]} 23. Nd6 {[%clk 0:01:58]}  Qxd3 {[%clk 0:00:40]} 24. Rfd1 {[%clk 0:01:49]}  Qe2 {[%clk 0:00:38]} 25. Nxf5 {[%clk 0:01:42]}  gxf5 {[%clk 0:00:37]} 26. Rab1 {[%clk 0:01:32]}  b6 {[%clk 0:00:34]} 27. Bf1 {[%clk 0:01:22]}  Qg4 {[%clk 0:00:31]} 28. Qd2 {[%clk 0:01:17]}  Bf6 {[%clk 0:00:18]} 29. Rb4 {[%clk 0:01:11]}  Qg6 {[%clk 0:00:15]} 30. Qc2 {[%clk 0:01:02]}  Kg7 {[%clk 0:00:14]} 31. Bh3 {[%clk 0:00:55]}  e4 {[%clk 0:00:10]} 32. Kh2 {[%clk 0:00:50]}  Be5 {[%clk 0:00:07]} 33. Rb5 {[%clk 0:00:46]}  Rfe8 {[%clk 0:00:07]} 34. Rdd5 {[%clk 0:00:45]}  Qf6 {[%clk 0:00:07]} 35. Qe2 {[%clk 0:00:42]}  Kg6 {[%clk 0:00:06]} 36. Qa2 {[%clk 0:00:31]}  Rbd8 {[%clk 0:00:05]} 37. Qb3 {[%clk 0:00:25]}  Rxd5 {[%clk 0:00:05]} 38. Qxd5 {[%clk 0:00:26]}  Re6 {[%clk 0:00:06]} 39. Kg2 {[%clk 0:00:25]}  Kg7 {[%clk 0:00:06]} 40. Qd1 {[%clk 0:00:20]}  Kg6 {[%clk 0:00:06]} 41. Kg1 {[%clk 0:00:18]}  Kh6 {[%clk 0:00:06]} 42. Bf1 {[%clk 0:00:17]}  Qg6 {[%clk 0:00:06]} 43. Kh2 {[%clk 0:00:15]}  Qg4 {[%clk 0:00:06]} 44. Qxg4 {[%clk 0:00:09]}  fxg4 {[%clk 0:00:06]} 45. Bc4 {[%clk 0:00:09]}  Re7 {[%clk 0:00:05]} 46. Rxb6+ {[%clk 0:00:09]}  f6 {[%clk 0:00:05]} 47. Bd5 {[%clk 0:00:07]}  Bc3 {[%clk 0:00:03]} 48. Rc6 {[%clk 0:00:07]}  Bb2 {[%clk 0:00:03]} 49. Rc2 {[%clk 0:00:07]}  Ba1 {[%clk 0:00:01]} 50. Ra2 {[%clk 0:00:07]}  Bc3 {[%clk 0:00:01]} 51. Ra3 {[%clk 0:00:08]}  Bb2 {[%clk 0:00:01]} 52. Rb3 {[%clk 0:00:08]}  Ba1 {[%clk 0:00:02]} 53. Rb6 {[%clk 0:00:09]}  Kh7 {[%clk 0:00:01]} 54. Kg2 {[%clk 0:00:09]}  Kg7 {[%clk 0:00:02]} 55. Be6 {[%clk 0:00:10]}  Kg6 {[%clk 0:00:01]} 56. Bc8 {[%clk 0:00:09]}  Kg7 {[%clk 0:00:01]} 57. Ra6 {[%clk 0:00:10]}  Bb2 {[%clk 0:00:01]} 58. Bf5 {[%clk 0:00:10]} 1-0


[Site "https://www.chess.com"]

[Event "Titled Tuesday Blitz August 17 2021"]
[White "Manukyan, Sargis A."]
[Black "Mekhitarian, Krikor Sevag"]
[WhiteFideId "13303970"]
[BlackFideId "2107660"]
[WhiteElo "2187"]
[BlackElo "2598"]
[Result "1-0"]
[Round "02"]
[TimeControl "180+1"]
[Date "2021.08.17"]
[WhiteClock "0:00:13"]
[BlackClock "0:00:05"]

1. d4 {[%clk 0:02:42]}  Nf6 {[%clk 0:02:59]} 2. c4 {[%clk 0:02:43]}  e6 {[%clk 0:02:54]} 3. Nc3 {[%clk 0:02:43]}  Bb4 {[%clk 0:02:54]} 4. Bd2 {[%clk 0:02:43]}  d5 {[%clk 0:02:47]} 5. Nf3 {[%clk 0:02:43]}  dxc4 {[%clk 0:02:45]} 6. e3 {[%clk 0:02:32]}  a6 {[%clk 0:02:32]} 7. Bxc4 {[%clk 0:02:31]}  b5 {[%clk 0:02:32]} 8. Bb3 {[%clk 0:02:24]}  Bb7 {[%clk 0:02:31]} 9. O-O {[%clk 0:02:24]}  O-O {[%clk 0:02:29]} 10. Rc1 {[%clk 0:02:21]}  Bd6 {[%clk 0:02:23]} 11. Qe2 {[%clk 0:02:18]}  Nbd7 {[%clk 0:02:18]} 12. h3 {[%clk 0:01:59]}  c5 {[%clk 0:02:13]} 13. dxc5 {[%clk 0:01:54]}  Nxc5 {[%clk 0:02:14]} 14. Bc2 {[%clk 0:01:54]}  Rc8 {[%clk 0:02:12]} 15. Rfd1 {[%clk 0:01:53]}  Qe7 {[%clk 0:02:08]} 16. e4 {[%clk 0:01:41]}  e5 {[%clk 0:01:48]} 17. Bg5 {[%clk 0:01:37]}  h6 {[%clk 0:01:44]} 18. Bh4 {[%clk 0:01:35]}  Ne6 {[%clk 0:01:19]} 19. Bxf6 {[%clk 0:01:25]}  gxf6 {[%clk 0:00:55]} 20. Nh4 {[%clk 0:01:19]}  Bb4 {[%clk 0:00:45]} 21. Nf5 {[%clk 0:01:07]}  Qc7 {[%clk 0:00:36]} 22. Bb3 {[%clk 0:00:57]}  Ng5 {[%clk 0:00:26]} 23. Nd5 {[%clk 0:00:44]}  Qxc1 {[%clk 0:00:21]} 24. Nxf6+ {[%clk 0:00:42]}  Kh8 {[%clk 0:00:19]} 25. Rxc1 {[%clk 0:00:23]}  Rxc1+ {[%clk 0:00:18]} 26. Kh2 {[%clk 0:00:24]}  Rc6 {[%clk 0:00:12]} 27. Nd5 {[%clk 0:00:19]}  Bc5 {[%clk 0:00:12]} 28. h4 {[%clk 0:00:18]}  Ne6 {[%clk 0:00:10]} 29. Qg4 {[%clk 0:00:17]}  Rg8 {[%clk 0:00:10]} 30. Qf3 {[%clk 0:00:17]}  Bf8 {[%clk 0:00:06]} 31. Nde7 {[%clk 0:00:16]}  Nd4 {[%clk 0:00:03]} 32. Nxd4 {[%clk 0:00:15]}  Bxe7 {[%clk 0:00:04]} 33. Nxc6 {[%clk 0:00:15]}  Bxc6 {[%clk 0:00:04]} 34. Qxf7 {[%clk 0:00:14]}  Bxh4 {[%clk 0:00:05]} 35. Qxg8# {[%clk 0:00:13]} 1-0


[Site "https://www.chess.com"]

[Event "Titled Tuesday Blitz August 17 2021"]
[White "Manukyan, Sargis A."]
[Black "Shahade, Gregory"]
[WhiteFideId "13303970"]
[BlackFideId "2009064"]
[WhiteElo "2187"]
[BlackElo "2718"]
[Result "1-0"]
[Round "02"]
[TimeControl "180+1"]
[Date "2021.08.17"]
[WhiteClock "0:01:21"]
[BlackClock "0:00:05"]

1. d4 {[%clk 0:03:00]}  Nf6 {[%clk 0:02:59]} 2. c4 {[%clk 0:03:01]}  g6 {[%clk 0:02:59]} 3. Nc3 {[%clk 0:03:02]}  d5 {[%clk 0:02:59]} 4. Bf4 {[%clk 0:03:01]}  Bg7 {[%clk 0:02:59]} 5. e3 {[%clk 0:03:01]}  c5 {[%clk 0:02:58]} 6. dxc5 {[%clk 0:03:02]}  Qa5 {[%clk 0:02:58]} 7. Rc1 {[%clk 0:03:03]}  dxc4 {[%clk 0:02:57]} 8. Bxc4 {[%clk 0:03:04]}  O-O {[%clk 0:02:56]} 9. Qb3 {[%clk 0:03:03]}  Nbd7 {[%clk 0:02:44]} 10. Qb5 {[%clk 0:02:57]}  Qxb5 {[%clk 0:02:22]} 11. Nxb5 {[%clk 0:02:57]}  Ne4 {[%clk 0:02:10]} 12. b4 {[%clk 0:02:50]}  a5 {[%clk 0:02:00]} 13. Nc7 {[%clk 0:02:49]}  Ra7 {[%clk 0:01:55]} 14. Nb5 {[%clk 0:02:47]}  Ra8 {[%clk 0:01:55]} 15. f3 {[%clk 0:02:47]}  e5 {[%clk 0:01:50]} 16. fxe4 {[%clk 0:02:27]}  exf4 {[%clk 0:01:49]} 17. Nc7 {[%clk 0:02:26]}  Rb8 {[%clk 0:01:41]} 18. exf4 {[%clk 0:02:24]}  axb4 {[%clk 0:01:40]} 19. Nf3 {[%clk 0:02:22]}  Bc3+ {[%clk 0:01:36]} 20. Kf2 {[%clk 0:02:19]}  Nxc5 {[%clk 0:01:36]} 21. e5 {[%clk 0:02:11]}  Bf5 {[%clk 0:01:23]} 22. Nd5 {[%clk 0:02:09]}  Be6 {[%clk 0:00:54]} 23. Nxc3 {[%clk 0:02:05]}  Bxc4 {[%clk 0:00:54]} 24. Nb1 {[%clk 0:02:00]}  Nd3+ {[%clk 0:00:54]} 25. Ke3 {[%clk 0:02:00]}  Nxc1 {[%clk 0:00:54]} 26. Rxc1 {[%clk 0:02:01]}  Rfc8 {[%clk 0:00:52]} 27. a3 {[%clk 0:01:59]}  b3 {[%clk 0:00:51]} 28. Nbd2 {[%clk 0:01:58]}  b5 {[%clk 0:00:50]} 29. Nd4 {[%clk 0:01:54]}  Ra8 {[%clk 0:00:49]} 30. Nb1 {[%clk 0:01:45]}  Bd5 {[%clk 0:00:43]} 31. Rd1 {[%clk 0:01:41]}  b2 {[%clk 0:00:37]} 32. Rd2 {[%clk 0:01:39]}  Ba2 {[%clk 0:00:31]} 33. Rxb2 {[%clk 0:01:36]}  Bxb1 {[%clk 0:00:31]} 34. Rxb1 {[%clk 0:01:37]}  Rxa3+ {[%clk 0:00:31]} 35. Ke4 {[%clk 0:01:34]}  Ra2 {[%clk 0:00:31]} 36. g4 {[%clk 0:01:28]}  Rxh2 {[%clk 0:00:21]} 37. Rxb5 {[%clk 0:01:28]}  h6 {[%clk 0:00:20]} 38. f5 {[%clk 0:01:28]}  g5 {[%clk 0:00:18]} 39. e6 {[%clk 0:01:28]}  fxe6 {[%clk 0:00:15]} 40. fxe6 {[%clk 0:01:29]}  Rh1 {[%clk 0:00:13]} 41. Rb7 {[%clk 0:01:28]}  Re1+ {[%clk 0:00:13]} 42. Kf5 {[%clk 0:01:28]}  Rd1 {[%clk 0:00:09]} 43. Rd7 {[%clk 0:01:22]}  Kh8 {[%clk 0:00:06]} 44. e7 {[%clk 0:01:21]}  Re8 {[%clk 0:00:05]} 45. Rd8 {[%clk 0:01:19]}  Rxd4 {[%clk 0:00:03]} 46. Rxe8+ {[%clk 0:01:18]}  Kg7 {[%clk 0:00:03]} 47. Rg8+ {[%clk 0:01:19]}  Kxg8 {[%clk 0:00:04]} 48. e8=Q+ {[%clk 0:01:20]}  Kg7 {[%clk 0:00:04]} 49. Qe5+ {[%clk 0:01:20]}  Kh7 {[%clk 0:00:05]} 50. Qxd4 {[%clk 0:01:21]} 1-0


[Site "https://www.chess.com"]

[Event "Titled Tuesday Blitz August 17 2021"]
[White "Marcziter, Dmitrii"]
[Black "Silich, Yahor"]
[WhiteFideId "13900765"]
[BlackFideId "13513656"]
[WhiteElo "2155"]
[BlackElo "2142"]
[Result "0-1"]
[Round "02"]
[TimeControl "180+1"]
[Date "2021.08.18"]
[WhiteClock "0:00:11"]
[BlackClock "0:00:30"]

1. e4 {[%clk 0:03:00]}  c5 {[%clk 0:03:00]} 2. Nc3 {[%clk 0:03:00]}  Nc6 {[%clk 0:03:00]} 3. g3 {[%clk 0:02:59]}  g6 {[%clk 0:03:00]} 4. Bg2 {[%clk 0:03:00]}  Bg7 {[%clk 0:03:00]} 5. d3 {[%clk 0:03:00]}  e6 {[%clk 0:03:01]} 6. Be3 {[%clk 0:03:00]}  Nd4 {[%clk 0:03:01]} 7. Nce2 {[%clk 0:02:59]}  Ne7 {[%clk 0:02:50]} 8. c3 {[%clk 0:02:58]}  Nxe2 {[%clk 0:02:51]} 9. Nxe2 {[%clk 0:02:58]}  d6 {[%clk 0:02:52]} 10. Qd2 {[%clk 0:02:55]}  h5 {[%clk 0:02:51]} 11. h4 {[%clk 0:02:52]}  Rb8 {[%clk 0:02:51]} 12. d4 {[%clk 0:02:50]}  cxd4 {[%clk 0:02:48]} 13. Bxd4 {[%clk 0:02:50]}  e5 {[%clk 0:02:47]} 14. Bxa7 {[%clk 0:02:49]}  Ra8 {[%clk 0:02:45]} 15. Be3 {[%clk 0:02:49]}  Be6 {[%clk 0:02:41]} 16. O-O {[%clk 0:02:45]}  O-O {[%clk 0:02:40]} 17. b3 {[%clk 0:02:44]}  Qc7 {[%clk 0:02:32]} 18. c4 {[%clk 0:02:43]}  Nc6 {[%clk 0:02:29]} 19. Rac1 {[%clk 0:02:40]}  Rfd8 {[%clk 0:02:25]} 20. Rfd1 {[%clk 0:02:38]}  Ra6 {[%clk 0:02:23]} 21. Bg5 {[%clk 0:02:34]}  Rd7 {[%clk 0:02:21]} 22. Bh6 {[%clk 0:02:32]}  Bxh6 {[%clk 0:02:16]} 23. Qxh6 {[%clk 0:02:30]}  Rxa2 {[%clk 0:02:16]} 24. Rd2 {[%clk 0:02:18]}  Rxd2 {[%clk 0:02:07]} 25. Qxd2 {[%clk 0:02:18]}  Bg4 {[%clk 0:01:54]} 26. f3 {[%clk 0:02:17]}  Be6 {[%clk 0:01:53]} 27. Kh2 {[%clk 0:02:17]}  Qc8 {[%clk 0:01:47]} 28. Bh3 {[%clk 0:02:14]}  Bxh3 {[%clk 0:01:46]} 29. Kxh3 {[%clk 0:02:14]}  d5 {[%clk 0:01:47]} 30. Rd1 {[%clk 0:02:05]}  Rd8+ {[%clk 0:01:39]} 31. Kg2 {[%clk 0:02:04]}  dxe4 {[%clk 0:01:39]} 32. Qe1 {[%clk 0:02:00]}  exf3+ {[%clk 0:01:39]} 33. Kxf3 {[%clk 0:02:00]}  Qf5+ {[%clk 0:01:39]} 34. Kg2 {[%clk 0:01:55]}  Rd3 {[%clk 0:01:35]} 35. Rxd3 {[%clk 0:01:44]}  Qxd3 {[%clk 0:01:36]} 36. Nc1 {[%clk 0:01:44]}  Qd4 {[%clk 0:01:27]} 37. Qe2 {[%clk 0:01:32]}  e4 {[%clk 0:01:24]} 38. Qf2 {[%clk 0:01:25]}  Kg7 {[%clk 0:00:55]} 39. Qxd4+ {[%clk 0:01:24]}  Nxd4 {[%clk 0:00:56]} 40. Kf2 {[%clk 0:01:24]}  Kf6 {[%clk 0:00:56]} 41. Ke3 {[%clk 0:01:24]}  Ke5 {[%clk 0:00:57]} 42. Kd2 {[%clk 0:01:19]}  Nf5 {[%clk 0:00:49]} 43. Ne2 {[%clk 0:01:17]}  Nd4 {[%clk 0:00:45]} 44. Nc1 {[%clk 0:01:14]}  f6 {[%clk 0:00:44]} 45. Kc3 {[%clk 0:01:12]}  g5 {[%clk 0:00:37]} 46. b4 {[%clk 0:01:05]}  gxh4 {[%clk 0:00:37]} 47. gxh4 {[%clk 0:01:06]}  f5 {[%clk 0:00:37]} 48. c5 {[%clk 0:00:26]}  f4 {[%clk 0:00:36]} 49. Kc4 {[%clk 0:00:25]}  f3 {[%clk 0:00:35]} 50. Nb3 {[%clk 0:00:11]}  Nxb3 {[%clk 0:00:29]} 51. Kxb3 {[%clk 0:00:09]}  f2 {[%clk 0:00:29]} 52. b5 {[%clk 0:00:10]}  f1=Q {[%clk 0:00:30]} 53. c6 {[%clk 0:00:11]}  Qxb5+ {[%clk 0:00:30]} 0-1


[Site "https://www.chess.com"]

[Event "Titled Tuesday Blitz August 17 2021"]
[White "Martins, Igor Carvalho Ribeiro"]
[Black "Atabayev, Saparmyrat"]
[WhiteFideId "2162962"]
[BlackFideId "14000571"]
[WhiteElo "2469"]
[BlackElo "2483"]
[Result "0-1"]
[Round "02"]
[TimeControl "180+1"]
[Date "2021.08.17"]
[WhiteClock "0:00:44"]
[BlackClock "0:01:14"]

1. Nf3 {[%clk 0:03:00]}  d5 {[%clk 0:02:59]} 2. d4 {[%clk 0:03:00]}  Nf6 {[%clk 0:03:00]} 3. c4 {[%clk 0:03:00]}  e6 {[%clk 0:02:59]} 4. Nc3 {[%clk 0:03:00]}  c5 {[%clk 0:02:58]} 5. cxd5 {[%clk 0:02:59]}  Nxd5 {[%clk 0:02:59]} 6. e4 {[%clk 0:02:59]}  Nxc3 {[%clk 0:03:00]} 7. bxc3 {[%clk 0:02:58]}  cxd4 {[%clk 0:03:01]} 8. cxd4 {[%clk 0:02:59]}  Bb4+ {[%clk 0:03:01]} 9. Bd2 {[%clk 0:02:59]}  Bxd2+ {[%clk 0:03:02]} 10. Qxd2 {[%clk 0:02:58]}  O-O {[%clk 0:03:03]} 11. Bc4 {[%clk 0:02:57]}  b6 {[%clk 0:03:03]} 12. O-O {[%clk 0:02:57]}  Bb7 {[%clk 0:03:04]} 13. Rfe1 {[%clk 0:02:57]}  Nd7 {[%clk 0:03:03]} 14. a4 {[%clk 0:02:51]}  Rc8 {[%clk 0:03:01]} 15. Bd3 {[%clk 0:02:49]}  h6 {[%clk 0:02:48]} 16. a5 {[%clk 0:02:47]}  Qc7 {[%clk 0:02:46]} 17. axb6 {[%clk 0:02:41]}  axb6 {[%clk 0:02:47]} 18. Rac1 {[%clk 0:02:21]}  Qd6 {[%clk 0:02:42]} 19. Rxc8 {[%clk 0:02:08]}  Rxc8 {[%clk 0:02:43]} 20. Rc1 {[%clk 0:02:08]}  Rd8 {[%clk 0:02:17]} 21. h3 {[%clk 0:01:58]}  Nf8 {[%clk 0:02:11]} 22. Qe3 {[%clk 0:01:36]}  Ng6 {[%clk 0:02:06]} 23. e5 {[%clk 0:01:28]}  Qd7 {[%clk 0:01:58]} 24. Be4 {[%clk 0:01:22]}  Ne7 {[%clk 0:01:54]} 25. Bxb7 {[%clk 0:01:15]}  Qxb7 {[%clk 0:01:55]} 26. Rb1 {[%clk 0:01:15]}  b5 {[%clk 0:01:49]} 27. Qb3 {[%clk 0:01:14]}  Rb8 {[%clk 0:01:48]} 28. Kh2 {[%clk 0:01:10]}  b4 {[%clk 0:01:46]} 29. Rc1 {[%clk 0:00:53]}  Qd5 {[%clk 0:01:41]} 30. Qxd5 {[%clk 0:00:50]}  Nxd5 {[%clk 0:01:42]} 31. Nd2 {[%clk 0:00:50]}  b3 {[%clk 0:01:21]} 32. Rb1 {[%clk 0:00:49]}  b2 {[%clk 0:01:22]} 33. Nc4 {[%clk 0:00:49]}  Rb4 {[%clk 0:01:22]} 34. Nxb2 {[%clk 0:00:44]}  Nf4 {[%clk 0:01:14]} 0-1


[Site "https://www.chess.com"]

[Event "Titled Tuesday Blitz August 17 2021"]
[White "Martins, Vinicius Tine"]
[Black "Ozen, Bahadir"]
[WhiteFideId "2112884"]
[BlackFideId "6337058"]
[WhiteElo "2373"]
[BlackElo "2503"]
[Result "0-1"]
[Round "02"]
[TimeControl "180+1"]
[Date "2021.08.17"]
[WhiteClock "0:00:02"]
[BlackClock "0:00:13"]

1. d4 {[%clk 0:03:00]}  e6 {[%clk 0:02:57]} 2. c4 {[%clk 0:03:00]}  Nf6 {[%clk 0:02:56]} 3. Nc3 {[%clk 0:03:00]}  Bb4 {[%clk 0:02:56]} 4. e3 {[%clk 0:03:00]}  O-O {[%clk 0:02:55]} 5. Ne2 {[%clk 0:03:00]}  c6 {[%clk 0:02:44]} 6. a3 {[%clk 0:02:58]}  Ba5 {[%clk 0:02:45]} 7. b4 {[%clk 0:02:57]}  Bc7 {[%clk 0:02:45]} 8. c5 {[%clk 0:02:50]}  d5 {[%clk 0:02:38]} 9. f4 {[%clk 0:02:28]}  a5 {[%clk 0:02:33]} 10. Bb2 {[%clk 0:02:24]}  b6 {[%clk 0:02:27]} 11. Nc1 {[%clk 0:02:13]}  axb4 {[%clk 0:02:24]} 12. axb4 {[%clk 0:02:13]}  Rxa1 {[%clk 0:02:25]} 13. Bxa1 {[%clk 0:02:13]}  bxc5 {[%clk 0:02:15]} 14. bxc5 {[%clk 0:02:11]}  Ba5 {[%clk 0:02:15]} 15. Bd3 {[%clk 0:02:02]}  Ba6 {[%clk 0:02:15]} 16. O-O {[%clk 0:01:47]}  Bxd3 {[%clk 0:01:40]} 17. Nxd3 {[%clk 0:01:45]}  Nbd7 {[%clk 0:01:40]} 18. Qa4 {[%clk 0:01:40]}  Qc7 {[%clk 0:01:41]} 19. Bb2 {[%clk 0:01:28]}  Ng4 {[%clk 0:01:32]} 20. Nd1 {[%clk 0:01:06]}  Bd2 {[%clk 0:01:09]} 21. Bc1 {[%clk 0:01:04]}  Bxc1 {[%clk 0:01:09]} 22. Nxc1 {[%clk 0:01:03]}  f6 {[%clk 0:01:00]} 23. h3 {[%clk 0:00:59]}  Nh6 {[%clk 0:01:00]} 24. Nd3 {[%clk 0:00:56]}  Nf5 {[%clk 0:00:57]} 25. Kf2 {[%clk 0:00:45]}  e5 {[%clk 0:00:56]} 26. g4 {[%clk 0:00:35]}  Ne7 {[%clk 0:00:46]} 27. Nc3 {[%clk 0:00:32]}  Ng6 {[%clk 0:00:39]} 28. Kg3 {[%clk 0:00:29]}  Re8 {[%clk 0:00:32]} 29. Nd1 {[%clk 0:00:19]}  exd4 {[%clk 0:00:25]} 30. exd4 {[%clk 0:00:19]}  Re4 {[%clk 0:00:25]} 31. Qa1 {[%clk 0:00:10]}  Ndf8 {[%clk 0:00:24]} 32. Kf3 {[%clk 0:00:07]}  Nxf4 {[%clk 0:00:22]} 33. N1f2 {[%clk 0:00:06]}  Nxd3 {[%clk 0:00:20]} 34. Nxe4 {[%clk 0:00:04]}  dxe4+ {[%clk 0:00:21]} 35. Kxe4 {[%clk 0:00:04]}  Nb4 {[%clk 0:00:21]} 36. Qa8 {[%clk 0:00:04]}  Nd5 {[%clk 0:00:15]} 37. Kf3 {[%clk 0:00:04]}  Qf4+ {[%clk 0:00:14]} 38. Ke2 {[%clk 0:00:04]}  Qe3+ {[%clk 0:00:14]} 39. Kd1 {[%clk 0:00:04]}  Qxd4+ {[%clk 0:00:14]} 40. Ke2 {[%clk 0:00:03]}  Qe3+ {[%clk 0:00:13]} 41. Kd1 {[%clk 0:00:03]}  Nc3+ {[%clk 0:00:13]} 42. Kc2 {[%clk 0:00:03]}  Qxc5 {[%clk 0:00:13]} 43. Rc1 {[%clk 0:00:02]}  Ne2+ {[%clk 0:00:13]} 44. Kd2 {[%clk 0:00:02]}  Nxc1 {[%clk 0:00:13]} 0-1


[Site "https://www.chess.com"]